[Event "Czech Open-Rapid 2022"]
[Site "Pardubice"]
[Date "2022.07.21"]
[Round "5.24"]
[White "Sarkar, Justin"]
[Black "Meszaros, Ludek"]
[Result "1-0"]
[ECO "E95"]
[WhiteElo "2346"]
[BlackElo "2049"]
[Annotator "TA"]
[PlyCount "83"]
[EventDate "2022.07.20"]
[EventType "swiss"]
[EventCountry "CZE"]
[SourceTitle "playchess.com"]
[Source "ChessBase"]
[SourceQuality "1"]
[TimeControl "1200+10"]

{[%evp 17,83,21,51,50,66,41,42,0,0,0,34,32,50,56,61,24,51,59,56,65,133,145,233,214,254,218,228,177,173,144,148,162,245,250,250,250,250,239,245,240,245,235,237,244,244,236,251,229,249,234,266,265,343,339,425,438,433,438,438,438,438,438,442,442,535,527,525,437]} 1. d4 {[%emt 0:02:55]} Nf6 2. c4 {[%emt 0:00:12]} g6 {[%emt 0:00:04]} 3. Nc3 {[%emt 0:00:04]} Bg7 {[%emt 0:00:02]} 4. e4 {[%emt 0:00:01]} d6 {[%emt 0:00:03]} 5. Nf3 {[%emt 0:00:25]} O-O {[%emt 0:00:03]} 6. Be2 {[%emt 0:00:02]} Nbd7 {[%emt 0:00:04]} 7. O-O {[%emt 0:00:14]} e5 {[%emt 0:00:03]} 8. Re1 {[%emt 0:00:03]} c6 {[%emt 0:00:08]} 9. Bf1 {[%emt 0:00:05]} Qb6 {[%emt 0:00:14]} 10. Rb1 {[%emt 0:02:44] E95: King's Indian: Classical: 7...Nbd7 8 Re1.} ({Don't play} 10. c5 dxc5 11. d5 (11. dxe5 Ng4 $15) 11... cxd5 12. exd5 Qd6 $11) 10... a5 {[%emt 0:01:26]} 11. b3 {[%emt 0:02:47][%cal Oc4c5]} exd4 {[%emt 0:01:06]} 12. Nxd4 {[%emt 0:00:02] [#] White is slightly better.} (12. Na4 $5 {[%cal Ra4b6]} Qa7 13. Nxd4 $11) 12... Nc5 $146 {[%emt 0:00:15]} ({Predecessor:} 12... Ng4 13. Nce2 Nc5 14. h3 Ne5 15. Nc3 Ncd3 16. Na4 Qxd4 17. Re3 b5 18. cxb5 cxb5 19. Nb2 Nxc1 20. Qxd4 Nf3+ 21. gxf3 Bxd4 22. Re1 Nxa2 23. Bxb5 Nc3 {0-1 (23) Fernandez Manrique,A (2183)-Rositsan,B (2051) Lyon 2015}) 13. Bb2 {[%emt 0:04:27]} Bg4 {[%emt 0:00:51]} 14. f3 {[%emt 0:00:33]} Be6 {[%emt 0:02:37]} 15. Kh1 {[%emt 0:00:07]} Rad8 {[%emt 0:00:11]} 16. Nc2 {[%emt 0:01:06]} d5 {[%emt 0:00:41]} 17. cxd5 {[%emt 0:00:37]} cxd5 {[%emt 0:00:03]} 18. e5 {[%emt 0:00:03]} Nh5 {[%emt 0:02:35]} (18... Nfd7 $14) 19. Nd4 $16 {[%emt 0:00:45] Qd2 is the strong threat.} Bc8 {[%emt 0:02:00] [#]} (19... Rfe8 $16 {was worth a try.}) 20. Qd2 $1 $18 {[%emt 0:00:52]} Ne6 {[%emt 0:01:18]} 21. Na4 {[%emt 0:00:23]} Qa7 {[%emt 0:01:42]} 22. Nb5 {[%emt 0:00:37]} Qb8 {[%emt 0:00:38][%cal Od5d4]} 23. Qxa5 {[%emt 0:02:35]} d4 {[%emt 0:01:19]} 24. Nd6 {[%emt 0:00:01] White is more active.} Bxe5 {[%emt 0:01:01]} (24... Bd7 $142 25. Nb6 Bc6) 25. Qxe5 {[%emt 0:00:09]} ({And not} 25. Nxc8 Bxh2 26. Ne7+ Kh8 $11) 25... Qxd6 {[%emt 0:00:17]} 26. Qxd6 {[%emt 0:00:05]} Rxd6 {[%emt 0:00:01]} 27. Ba3 {[%emt 0:00:02]} Rfd8 {[%emt 0:00:09]} 28. Bxd6 {[%emt 0:00:03]} Rxd6 {[%emt 0:00:01]} 29. Rbc1 {[%emt 0:00:16]} Bd7 {[%emt 0:00:07]} 30. Nc5 {[%emt 0:00:12]} Nxc5 {[%emt 0:00:25]} 31. Rxc5 {[%emt 0:00:03]} Nf4 {[%emt 0:00:28]} 32. Kg1 {[%emt 0:00:51]} Ne6 {[%emt 0:00:31]} 33. Rc2 {[%emt 0:00:08]} b6 {[%emt 0:00:36]} 34. Kf2 {[%emt 0:00:18]} Nc5 {[%emt 0:00:12]} 35. Rd1 {[%emt 0:00:26]} Kg7 {[%emt 0:01:00]} 36. Rcd2 {[%emt 0:00:09] White is clearly winning.} Ne6 {[%emt 0:00:02]} 37. Bc4 {[%emt 0:00:03]} b5 {[%emt 0:02:31]} 38. Bxe6 {[%emt 0:00:04]} Bxe6 {[%emt 0:00:03]} 39. Rxd4 {[%emt 0:00:03]} Ra6 {[%emt 0:00:07]} 40. R1d2 {[%emt 0:00:02]} Kf6 {[%emt 0:00:01]} 41. Rd6 {[%emt 0:00:08]} Ra8 42. Rc6 {Weighted Error Value: White=0.09 (flawless) /Black=0.24 (precise)} 1-0

[Event "Czech Open-Rapid 2022"]
[Site "Pardubice"]
[Date "2022.07.21"]
[Round "5.26"]
[White "Malinovsky, Petr"]
[Black "Vokoun, Jan"]
[Result "1-0"]
[ECO "A59"]
[WhiteElo "1959"]
[BlackElo "2056"]
[Annotator "RC"]
[PlyCount "61"]
[EventDate "2022.07.20"]
[EventType "swiss"]
[EventCountry "CZE"]
[SourceTitle "playchess.com"]
[Source "ChessBase"]
[SourceQuality "1"]
[TimeControl "1200+10"]

1. d4 {[%emt 0:00:02]} Nf6 {[%emt 0:00:04]} 2. c4 {[%emt 0:00:02]} c5 {[%emt 0:00:59]} 3. d5 {[%emt 0:00:02]} b5 {[%emt 0:00:02]} 4. cxb5 {[%emt 0:00:01]} a6 {[%emt 0:00:00]} 5. bxa6 {[%emt 0:00:02]} Bxa6 {[%emt 0:00:02]} 6. Nc3 {[%emt 0:00:02]} d6 {[%emt 0:00:15]} 7. e4 {[%emt 0:00:03]} g6 {[%emt 0:00:02]} 8. Bxa6 {[%emt 0:00:05]} Rxa6 {[%emt 0:00:01]} 9. Nf3 {[%emt 0:00:10]} Nbd7 {[%emt 0:00:05]} 10. O-O {[%emt 0:00:05]} Bg7 {[%emt 0:00:16]} 11. Qe2 {[%emt 0:00:21]} Qa8 {[%emt 0:00:56]} 12. Nb5 {[%emt 0:00:36]} Qb7 {[%emt 0:02:04]} 13. a4 {[%emt 0:00:01]} O-O {[%emt 0:00:47]} 14. Ra3 {[%emt 0:00:04]} Nb6 {[%emt 0:03:03]} 15. b3 {[%emt 0:00:09]} c4 {[%emt 0:00:41]} 16. bxc4 {[%emt 0:02:20]} Rc8 {[%emt 0:01:39]} 17. Nd2 {[%emt 0:02:26]} Rxa4 {[%emt 0:00:21]} 18. Rxa4 {[%emt 0:00:17]} Nxa4 {[%emt 0:00:02]} 19. Nb3 {[%emt 0:00:29]} Ra8 {[%emt 0:04:26]} 20. Bd2 {[%emt 0:01:14]} Nd7 {[%emt 0:01:25]} 21. Na5 {[%emt 0:00:27]} Qb6 {[%emt 0:00:41]} 22. Nc6 {[%emt 0:00:04]} Kf8 {[%emt 0:00:32]} 23. Be3 {[%emt 0:00:19]} Nac5 {[%emt 0:01:02]} 24. f4 {[%emt 0:01:38]} Nb8 {[%emt 0:02:31]} 25. Nxb8 {[%emt 0:01:35]} Qxb8 {[%emt 0:00:23]} 26. Bxc5 dxc5 27. e5 {[%emt 0:01:13]} Qb6 {[%emt 0:00:24]} 28. d6 {[%emt 0:01:26]} exd6 {[%emt 0:00:29]} 29. Nxd6 {[%emt 0:00:04]} Qb3 {[%emt 0:00:35]} 30. Qf3 {[%emt 0:01:02]} Rb8 {[%emt 0:01:05]} 31. Qd5 {[%emt 0:00:39]} 1-0

[Event "Czech Open-Rapid 2022"]
[Site "Pardubice"]
[Date "2022.07.21"]
[Round "5.27"]
[White "Sir, Zbynek"]
[Black "Brozka, Karel"]
[Result "1/2-1/2"]
[ECO "B13"]
[WhiteElo "2199"]
[BlackElo "2188"]
[Annotator "TA"]
[PlyCount "97"]
[EventDate "2022.07.20"]
[EventType "swiss"]
[EventCountry "CZE"]
[SourceTitle "playchess.com"]
[Source "ChessBase"]
[SourceQuality "1"]
[TimeControl "1200+10"]

{[%evp 18,97,8,3,39,-28,30,30,37,31,35,43,45,30,63,22,36,32,73,39,33,22,21,25,48,17,21,25,25,12,10,0,0,0,10,10,5,0,0,-39,-23,-31,-41,-29,-31,-31,-10,-18,-7,-33,-36,-31,-41,-39,-31,-27,-8,-11,-3,-21,0,-8,0,0,0,0,0,0,0,0,0,0,0,0,0,0,0,0,0,0,0,0]} 1. e4 {[%emt 0:02:53]} c6 {[%emt 0:00:01]} 2. d4 {[%emt 0:00:01]} d5 {[%emt 0:00:01]} 3. exd5 {[%emt 0:00:01]} cxd5 {[%emt 0:00:01]} 4. c4 {[%emt 0:00:02]} Nf6 {[%emt 0:00:02]} 5. Nc3 {[%emt 0:00:01]} Nc6 {[%emt 0:00:03]} 6. cxd5 {[%emt 0:00:09]} Nxd5 {[%emt 0:00:06]} 7. Bc4 {[%emt 0:00:01]} e6 {[%emt 0:00:30]} 8. Nf3 {[%emt 0:00:03]} Be7 {[%emt 0:00:12]} 9. O-O {[%emt 0:00:09]} O-O {[%emt 0:00:12]} 10. Re1 {[%emt 0:00:02]} b6 {[%emt 0:00:50] D41: Queen's Gambit Declined: Semi-Tarrasch with 5 cxd5.} 11. a3 {[%emt 0:00:24]} (11. Nxd5 $14 exd5 12. Bb5) 11... Bb7 {[%emt 0:00:11]} (11... Nxc3 $142 $1 12. bxc3 Bb7) 12. Nxd5 $11 {[%emt 0:00:08]} exd5 {[%emt 0:00:03] White has an edge.} 13. Bb5 {[%emt 0:00:15][%cal Bc4b5,Bb5a4,Ba4c2][%mdl 32] [#]} Bd6 $146 {[%emt 0:01:31]} ({Predecessor:} 13... Bf6 14. Ne5 Nxe5 15. dxe5 Be7 16. Bf4 d4 17. Qg4 f5 18. exf6 Bxf6 19. Bd3 Rf7 {1-0 (33) Arutinian,D (2545)-Loiseau,Q (2374) Cappelle la Grande 2013}) 14. Bg5 {[%emt 0:00:55]} f6 {[%emt 0:00:52]} 15. Bh4 {[%emt 0:01:46]} a6 {[%emt 0:00:16]} 16. Ba4 {[%emt 0:00:07]} b5 {[%emt 0:00:54]} 17. Bc2 {[%emt 0:00:22]} Ne7 {[%emt 0:00:57]} 18. Qd3 {[%emt 0:00:47]} g6 $1 {[%emt 0:01:39]} 19. Qd2 {[%emt 0:01:25]} Bc8 {[%emt 0:00:52]} 20. Bb3 {[%emt 0:01:00]} Bf5 {[%emt 0:00:41]} 21. Qe2 {[%emt 0:01:55]} Qb6 {[%emt 0:02:19]} 22. Bg3 {[%emt 0:01:26] [#] Black must now prevent Bxd6.} Rae8 {[%emt 0:01:23]} 23. Rac1 {[%emt 0:00:33]} Kg7 {[%emt 0:01:55]} 24. Bxd6 {[%emt 0:02:22]} Qxd6 {[%emt 0:00:02]} 25. Nh4 {[%emt 0:03:51]} Qf4 {[%emt 0:04:08]} 26. g3 $1 {[%emt 0:00:02]} Qxd4 {[%emt 0:00:15]} 27. Rc7 {[%emt 0:00:14] [#] Qxe7+ would kill now.} Be4 {[%emt 0:01:13][%cal Bf5e4,Be4d5,Bd5c4][%mdl 32]} 28. Bxd5 {[%emt 0:01:14]} Bxd5 {[%emt 0:00:16]} 29. Rxe7+ {[%emt 0:00:39]} Rxe7 {[%emt 0:00:10]} 30. Qxe7+ {[%emt 0:00:02]} Rf7 {[%emt 0:00:01]} 31. Qe2 {[%emt 0:00:36]} Bc4 {[%emt 0:00:18]} (31... Ba8 {feels hotter.} 32. Rd1 Qc5 33. Qe8 Qc2) 32. Nf3 {[%emt 0:00:15]} Qg4 {[%emt 0:01:17]} 33. Qe4 {[%emt 0:00:15]} Qxe4 {[%emt 0:00:46]} 34. Rxe4 $15 {[%emt 0:00:02][%mdl 4096] Endgame KRB-KRN} Bd5 {[%emt 0:00:05]} 35. Re3 {[%emt 0:00:01]} Rc7 {[%emt 0:00:33]} 36. Ne1 {[%emt 0:00:21]} Kf7 {[%emt 0:00:20]} 37. f4 {[%emt 0:00:30] The position is equal.} Rc1 {[%emt 0:00:15]} 38. Kf2 {[%emt 0:00:02]} a5 {[%emt 0:00:25]} 39. Re2 {[%emt 0:01:03]} Rd1 {[%emt 0:00:24]} 40. Nf3 {[%emt 0:00:33]} Bc4 {[%emt 0:00:31]} 41. Rd2 {[%emt 0:00:09]} Rf1+ {[%emt 0:00:11]} 42. Ke3 {[%emt 0:00:01]} Ke7 {[%emt 0:00:11]} 43. Nd4 Re1+ {[%emt 0:00:10]} 44. Kf2 {[%emt 0:00:09]} Rf1+ {[%emt 0:00:13]} 45. Ke3 {[%emt 0:00:16]} Re1+ {[%emt 0:00:02]} 46. Kf3 {[%emt 0:00:00]} a4 {[%emt 0:00:15]} 47. g4 {[%emt 0:00:23]} Rf1+ {[%emt 0:00:12]} 48. Ke3 {[%emt 0:00:06]} Re1+ {[%emt 0:00:02]} 49. Kf3 {[%emt 0:00:23] Weighted Error Value: White=0.10 (very precise) /Black=0.10 (very precise)} 1/2-1/2

[Event "Czech Open-Rapid 2022"]
[Site "Pardubice"]
[Date "2022.07.21"]
[Round "5.28"]
[White "Silar, Lubomir"]
[Black "Chubar, Vladimir"]
[Result "1-0"]
[ECO "A40"]
[WhiteElo "1993"]
[BlackElo "1809"]
[Annotator "TA"]
[PlyCount "139"]
[EventDate "2022.07.20"]
[EventType "swiss"]
[EventCountry "CZE"]
[SourceTitle "playchess.com"]
[Source "ChessBase"]
[SourceQuality "1"]
[TimeControl "1200+10"]

{[%evp 10,139,0,0,44,43,35,8,9,-28,-26,-25,-26,-33,-36,-64,0,0,-1,-12,10,0,0,-16,-32,-19,-23,-11,-6,-9,0,-22,-9,-27,0,0,10,0,17,12,500,472,722,215,235,181,177,175,187,195,181,181,190,74,84,71,100,0,652,292,286,293,287,285,274,204,1560,1381,1336,1240,1089,951,770,593,529,398,377,319,279,279,277,269,269,78,80,80,82,30,79,0,0,0,0,0,0,0,0,0,0,0,0,0,0,0,114,114,114,114,29968,29969,29968,114,29969,29971,29971,29971,29970,29972,29972,29973,29973,29972,29974,29974,29975,29976,29976,29977,29983,29984,29984,29985]} 1. d4 {[%emt 0:00:07]} e6 {[%emt 0:01:01]} 2. Nf3 {[%emt 0:00:10]} Nf6 {[%emt 0:00:32]} 3. g3 {[%emt 0:00:38]} c5 {[%emt 0:00:31]} 4. c3 {[%emt 0:01:25]} d5 {[%emt 0:00:13]} 5. Bg2 {[%emt 0:00:03]} Nc6 {[%emt 0:00:49]} 6. O-O {[%emt 0:00:04]} Ne4 {[%emt 0:00:31] D02: 1 d4 d5 2 Nf3 sidelines, including 2...Nf6 3 g3 and 2...Nf6 3 Bf4.} 7. Nbd2 {[%emt 0:00:41]} f5 {[%emt 0:00:21]} 8. dxc5 {[%emt 0:01:01]} Bxc5 {[%emt 0:00:24] [#] The position is equal.} 9. Nb3 $146 {[%emt 0:00:13]} ({Predecessor:} 9. Nxe4 fxe4 10. Nd4 O-O 11. Bf4 Qe7 12. f3 e5 13. fxe4 exd4 14. cxd4 Bxd4+ 15. Kh1 dxe4 16. e3 Bb6 {0-1 (16) Angelov,A-Hristov,K (1890) Sofia 2011}) 9... Bb6 {[%emt 0:00:52]} 10. a4 {[%emt 0:01:23][%cal Oa4a5]} O-O {[%emt 0:00:44]} 11. Nbd4 {[%emt 0:00:32]} Qe7 {[%emt 0:01:05]} 12. Bf4 {[%emt 0:02:58]} g5 {[%emt 0:01:36]} ({Better is} 12... Na5 $15) 13. Nxc6 $11 {[%emt 0:00:09]} bxc6 {[%emt 0:00:11]} 14. Be5 {[%emt 0:00:18]} c5 {[%emt 0:02:25]} 15. a5 {[%emt 0:01:31]} Bc7 {[%emt 0:00:56]} 16. Bxc7 {[%emt 0:00:16]} Qxc7 {[%emt 0:00:09]} 17. Nd2 {[%emt 0:00:42]} Ba6 {[%emt 0:00:35] Against c4} 18. Nxe4 {[%emt 0:01:20]} dxe4 {[%emt 0:00:38]} 19. Qd2 {[%emt 0:00:13]} h6 {[%emt 0:00:41]} 20. Qe3 {[%emt 0:02:11]} Rab8 {[%emt 0:01:02]} 21. Rfb1 {[%emt 0:01:20]} Kg7 {[%emt 0:01:19]} 22. b4 {[%emt 0:01:10]} Rfc8 {[%emt 0:01:18]} 23. f3 {[%emt 0:01:35]} Qe5 {[%emt 0:00:58]} 24. fxe4 {[%emt 0:02:16]} cxb4 $2 {[%emt 0:00:25][%mdl 8192]} (24... f4 $11 25. gxf4 gxf4) 25. Qxa7+ $18 {[%emt 0:00:31]} Bb7 {[%emt 0:00:33]} (25... Kf8 $142 26. Qxa6 bxc3) 26. cxb4 $2 {[%emt 0:00:45]} (26. a6) 26... Kf6 {[%emt 0:01:03]} 27. Rd1 {[%emt 0:00:41] Hoping for a6.} Bxe4 {[%emt 0:00:57]} 28. Bxe4 {[%emt 0:00:11] The board is on fire.} Qxe4 {[%emt 0:00:30]} 29. Qd4+ {[%emt 0:00:09]} Qxd4+ {[%emt 0:00:22]} 30. Rxd4 {[%emt 0:00:01][%mdl 4096] Endgame KRR-KRR} Ke5 {[%emt 0:00:04]} 31. Rad1 {[%emt 0:00:12]} (31. e3 $18 {has better winning chances.}) 31... Rc2 $16 {[%emt 0:00:06]} 32. Kf2 {[%emt 0:00:22]} Rb2 {[%emt 0:00:05]} 33. a6 {[%emt 0:00:14]} (33. Rc4 $1 $16) 33... R8xb4 $2 {[%emt 0:00:18][%mdl 8192]} (33... Ra2 $11) 34. Rxb4 {[%emt 0:00:02]} (34. a7 $142 Rxd4 35. a8=Q $1 (35. Rxd4 Ra2 $11) 35... Rxd1 36. Qh8+ Kd6 37. Qxb2) 34... Rxb4 $11 {[%emt 0:00:01] KR-KR} 35. Ra1 {[%emt 0:00:01] Prevents Ra4.} Rb8 {[%emt 0:00:01]} 36. a7 {[%emt 0:00:12]} Ra8 {[%emt 0:00:01]} 37. Ke3 {[%emt 0:00:15]} f4+ $2 {[%emt 0:00:30]} (37... Kd5 38. Kf3 Kc6) 38. gxf4+ $18 {[%emt 0:00:02]} gxf4+ {[%emt 0:00:01]} 39. Kf3 {[%emt 0:00:09]} Kf5 {[%emt 0:00:01]} 40. Ra5+ {[%emt 0:00:08]} e5 {[%emt 0:00:01]} 41. e4+ {[%emt 0:00:02]} Kf6 {[%emt 0:00:53]} 42. Ra6+ {[%emt 0:00:12]} Kg7 {[%emt 0:00:02]} 43. Kg4 {[%emt 0:00:02]} Kf8 {[%emt 0:00:37]} 44. Kf5 {[%emt 0:00:39]} f3 {[%emt 0:01:00]} 45. Ra2 {[%emt 0:00:01] And now Kg4 would win.} (45. Kxe5 f2 46. Rf6+ (46. Rxh6 $2 Kg7 $19) 46... Ke7 $16) 45... Ke7 {[%emt 0:00:31][%cal Of3f2]} 46. Kxe5 $2 {[%emt 0:00:08]} ({Not} 46. Ra1 Kd6 $16) (46. h4 $1 $18) 46... f2 $16 {[%emt 0:00:07]} 47. Rxf2 {[%emt 0:00:04] Threatening mate with Ra2.} Rxa7 {[%emt 0:00:02]} 48. Kf5 {[%emt 0:00:22]} (48. Rf5 $16) 48... Ra3 {[%emt 0:00:06]} (48... Ra5+ $11 49. e5 Ra1) 49. e5 {[%emt 0:00:22]} (49. h4 $16) 49... Rh3 $11 {[%emt 0:00:09]} 50. Kg4 {[%emt 0:00:09]} Re3 {[%emt 0:00:02]} 51. Kf5 {[%emt 0:00:04]} Rh3 {[%emt 0:00:06]} 52. Ra2 {[%emt 0:00:02]} Rh5+ {[%emt 0:00:02]} 53. Ke4 {[%emt 0:00:02]} Ke6 {[%emt 0:00:23]} 54. Ra6+ {[%emt 0:00:02]} Ke7 {[%emt 0:00:01]} 55. Kd5 {[%emt 0:00:19]} Rxh2 {[%emt 0:00:04]} 56. Ra7+ {[%emt 0:00:00]} Kd8 {[%emt 0:00:19]} (56... Kf8 $11 {remains equal.}) 57. Kd6 $16 {[%emt 0:00:18][%cal Ra7a8]} Rd2+ {[%emt 0:00:06] [#]} 58. Ke6 $1 {[%emt 0:00:02] White wants to mate with Ra8+.} Rb2 $2 {[%emt 0:00:36][%mdl 8192] [#]} (58... Re2 $16 59. Rd7+ Ke8) 59. Ra8+ $1 {[%emt 0:00:09]} Kc7 {[%emt 0:00:02]} 60. Rh8 $2 {[%emt 0:00:05]} (60. Kf6 {mates} h5 61. Rh8 h4 62. Rxh4 Rd2 63. Rh8 Rg2 64. e6 Rf2+ 65. Ke7) 60... Kc6 $2 {[%emt 0:00:30][%mdl 8192]} (60... Re2 $16 61. Rh7+ (61. Rxh6 Re1 $16) 61... Kc6 62. Rxh6 Kc7 63. Rh7+ Kd8 64. Rd7+ Ke8) 61. Rxh6 {[%emt 0:00:11] White mates.} Kc5 {[%emt 0:00:06]} 62. Rh8 {[%emt 0:00:14]} Rb6+ {[%emt 0:00:05]} 63. Kf5 {[%emt 0:00:08]} Rb1 {[%emt 0:00:25]} 64. Rd8 {[%emt 0:00:03]} Kc6 {[%emt 0:00:09]} 65. Rd2 {[%emt 0:00:04]} Re1 {[%emt 0:00:09]} 66. Kf6 {[%emt 0:00:03]} Kc7 {[%emt 0:00:09]} 67. e6 {[%emt 0:00:05][%cal Be5e6,Be6e7][%mdl 32]} Rh1 {[%emt 0:00:10]} 68. e7 {[%emt 0:00:10]} Rh6+ {[%emt 0:00:27]} 69. Kg7 {[%emt 0:00:04]} Re6 {[%emt 0:00:13]} 70. Kf7 {[%emt 0:00:02] Weighted Error Value: White=0.68/Black=0.81} 1-0

[Event "Czech Open-Rapid 2022"]
[Site "Pardubice"]
[Date "2022.07.21"]
[Round "5.29"]
[White "Maklakova, Naomi"]
[Black "Schatz, Christian"]
[Result "0-1"]
[ECO "A48"]
[WhiteElo "1548"]
[BlackElo "2137"]
[Annotator "NA RC"]
[PlyCount "74"]
[EventDate "2022.07.20"]
[EventType "swiss"]
[EventCountry "CZE"]
[SourceTitle "playchess.com"]
[Source "ChessBase"]
[SourceQuality "1"]
[TimeControl "1200+10"]

1. d4 Nf6 {[%emt 0:00:05]} 2. Nf3 {[%emt 0:00:07]} g6 {[%emt 0:00:06]} 3. c3 {[%emt 0:00:12]} Bg7 {[%emt 0:00:04]} 4. Bg5 O-O {[%emt 0:00:15]} 5. Nbd2 {[%emt 0:00:07]} h6 {[%emt 0:00:31]} 6. Bh4 {[%emt 0:00:31]} d5 {[%emt 0:00:17]} 7. e3 {[%emt 0:00:12]} b6 {[%emt 0:00:16]} 8. Bd3 {[%emt 0:00:04]} Bb7 {[%emt 0:00:25]} 9. O-O {[%emt 0:00:08]} c5 {[%emt 0:00:03]} 10. Rc1 {[%emt 0:00:21]} Nc6 {[%emt 0:00:07]} 11. Re1 {[%emt 0:00:11]} Re8 {[%emt 0:00:38]} 12. Bg3 {[%emt 0:00:14]} Nd7 {[%emt 0:01:39]} 13. Bb1 {[%emt 0:00:43]} e5 {[%emt 0:00:10]} 14. dxe5 {[%emt 0:00:21]} Ndxe5 {[%emt 0:00:09]} 15. Nxe5 {[%emt 0:00:42]} Nxe5 {[%emt 0:00:08]} 16. e4 {[%emt 0:00:11]} Qd7 {[%emt 0:01:24]} 17. exd5 {[%emt 0:00:20]} Bxd5 {[%emt 0:00:24]} 18. Ne4 {[%emt 0:04:30]} Rad8 {[%emt 0:00:48]} 19. Qc2 {[%emt 0:02:30]} f5 {[%emt 0:01:47]} 20. Nd2 {[%emt 0:00:41]} Nf7 {[%emt 0:02:57]} 21. Nf1 {[%emt 0:00:59]} Qc6 {[%emt 0:01:37]} 22. f3 {[%emt 0:04:26]} Qf6 {[%emt 0:00:33]} 23. Rcd1 {[%emt 0:01:42]} Bc6 {[%emt 0:01:40]} 24. Bf2 {[%emt 0:02:43]} Ne5 {[%emt 0:00:12]} 25. a3 {[%emt 0:00:22]} Qg5 {[%emt 0:00:40]} 26. h4 {[%emt 0:00:18]} Nxf3+ {[%emt 0:00:26]} 27. Kh1 {[%emt 0:00:21]} Nxh4 {[%emt 0:00:28]} 28. Bxh4 {[%emt 0:00:01]} Qxh4+ {[%emt 0:00:07]} 29. Kg1 {[%emt 0:00:10]} Rxe1 {[%emt 0:00:59]} 30. Ba2+ {[%emt 0:00:06]} Kh7 {[%emt 0:00:23]} 31. Rxd8 {[%emt 0:00:26]} Qxd8 {[%emt 0:00:35]} 32. Qb3 {[%emt 0:00:08]} Re8 {[%emt 0:00:47]} 33. Qf7 {[%emt 0:00:17]} Re7 {[%emt 0:00:32]} 34. Qc4 {[%emt 0:00:09]} Rd7 {[%emt 0:00:08]} 35. Qe6 {[%emt 0:00:12]} Bd5 {[%emt 0:00:15]} 36. Bxd5 {[%emt 0:00:04]} Rxd5 {[%emt 0:00:01]} 37. Ne3 {[%emt 0:00:11]} Re5 0-1

[Event "Czech Open-Rapid 2022"]
[Site "Pardubice"]
[Date "2022.07.21"]
[Round "5.30"]
[White "Ptacek, Lubos"]
[Black "Kuznecova, Marija"]
[Result "1-0"]
[ECO "B92"]
[WhiteElo "2049"]
[BlackElo "1755"]
[Annotator "NA RC"]
[PlyCount "109"]
[EventDate "2022.07.20"]
[EventType "swiss"]
[EventCountry "CZE"]
[SourceTitle "playchess.com"]
[Source "ChessBase"]
[SourceQuality "1"]
[TimeControl "1200+10"]

1. e4 {[%emt 0:00:05]} c5 {[%emt 0:00:01]} 2. Nf3 {[%emt 0:00:03]} d6 {[%emt 0:00:01]} 3. d4 {[%emt 0:00:01]} cxd4 {[%emt 0:00:02]} 4. Nxd4 {[%emt 0:00:02]} Nf6 {[%emt 0:00:02]} 5. Nc3 {[%emt 0:00:01]} a6 {[%emt 0:00:01]} 6. Be2 {[%emt 0:00:03]} e5 {[%emt 0:00:03]} 7. Nb3 {[%emt 0:00:03]} Be6 {[%emt 0:00:02]} 8. Be3 {[%emt 0:00:05]} Be7 {[%emt 0:00:08]} 9. O-O {[%emt 0:00:04]} O-O {[%emt 0:00:05]} 10. h3 {[%emt 0:00:21]} Nbd7 {[%emt 0:00:40]} 11. Qd2 {[%emt 0:00:28]} b5 {[%emt 0:00:21]} 12. Bd3 {[%emt 0:00:22]} Nb6 {[%emt 0:00:55]} 13. Bxb6 {[%emt 0:00:22]} Qxb6 {[%emt 0:00:03]} 14. Rad1 {[%emt 0:00:13]} h6 {[%emt 0:01:04]} 15. Rfe1 {[%emt 0:01:32]} Nd7 {[%emt 0:00:56]} 16. Nd5 {[%emt 0:00:52]} Bxd5 {[%emt 0:00:29]} 17. exd5 {[%emt 0:00:02]} Bg5 {[%emt 0:00:15]} 18. Qa5 {[%emt 0:00:25]} Qxa5 {[%emt 0:01:18]} 19. Nxa5 {[%emt 0:00:03]} Nc5 {[%emt 0:00:03]} 20. Nc6 {[%emt 0:00:30]} f5 {[%emt 0:00:47]} 21. Be2 {[%emt 0:00:45]} g6 {[%emt 0:00:34]} 22. c4 {[%emt 0:00:33]} bxc4 {[%emt 0:01:44]} 23. Bxc4 {[%emt 0:00:02]} Kg7 {[%emt 0:00:37]} 24. b4 {[%emt 0:00:17]} Nd7 {[%emt 0:00:34]} 25. Rd3 {[%emt 0:00:28]} Nb8 {[%emt 0:02:10]} 26. Red1 {[%emt 0:00:57]} Rc8 {[%emt 0:01:22]} 27. a4 {[%emt 0:00:51]} Nd7 {[%emt 0:02:21]} 28. g3 {[%emt 0:00:38]} e4 {[%emt 0:01:21]} 29. Ra3 {[%emt 0:00:39]} Bf6 {[%emt 0:00:50]} 30. Ra2 {[%emt 0:01:20]} Kf8 {[%emt 0:01:35]} 31. Rb1 {[%emt 0:00:13]} Nb6 {[%emt 0:01:21]} 32. Bb3 {[%emt 0:00:04]} Nd7 {[%emt 0:00:16]} 33. Kg2 {[%emt 0:00:29]} Ne5 {[%emt 0:00:38]} 34. Rd1 {[%emt 0:00:43]} Nf3 {[%emt 0:00:33]} 35. Rc2 {[%emt 0:01:38]} Rc7 {[%emt 0:00:50]} 36. Bc4 {[%emt 0:00:29]} Ne5 {[%emt 0:00:14]} 37. Be2 {[%emt 0:00:41]} h5 {[%emt 0:01:02]} 38. Rb1 {[%emt 0:00:53]} Kg7 {[%emt 0:00:30]} 39. b5 {[%emt 0:00:27]} axb5 {[%emt 0:00:05]} 40. axb5 {[%emt 0:00:03]} Rb7 {[%emt 0:00:18]} 41. Nd4 {[%emt 0:00:52]} Kf7 {[%emt 0:00:18]} 42. Rbc1 {[%emt 0:00:22]} Rab8 {[%emt 0:00:25]} 43. Rc7+ {[%emt 0:00:10]} Ke8 {[%emt 0:00:03]} 44. Rxb7 {[%emt 0:01:00]} Rxb7 {[%emt 0:00:01]} 45. Rc8+ {[%emt 0:00:15]} Kd7 {[%emt 0:00:10]} 46. Rg8 {[%emt 0:00:09]} Nd3 {[%emt 0:00:13]} 47. Ne6 {[%emt 0:00:26]} Rxb5 {[%emt 0:00:07]} 48. Nf8+ {[%emt 0:01:36]} Kc7 {[%emt 0:00:01]} 49. Rxg6 {[%emt 0:00:10]} Be7 {[%emt 0:00:18]} 50. Ne6+ {[%emt 0:00:10]} Kd7 {[%emt 0:00:09]} 51. Bxh5 {[%emt 0:00:48]} Rb2 {[%emt 0:00:10]} 52. Rg8 {[%emt 0:00:09]} Rxf2+ {[%emt 0:00:11]} 53. Kg1 {[%emt 0:00:04]} e3 {[%emt 0:00:07]} 54. Be8+ {[%emt 0:00:12]} Kc8 {[%emt 0:00:04]} 55. Bc6+ {[%emt 0:00:13]} 1-0